[Event "NOR-ch Various 2019"]
[Site "Larvik"]
[Date "2019.07.08"]
[Round "3.17"]
[White "Nordquelle, Daniel"]
[Black "Heier, Odin Nikolai"]
[Result "1-0"]
[ECO "C54"]
[WhiteElo "2181"]
[BlackElo "1863"]
[Annotator "NA"]
[PlyCount "116"]
[EventDate "2019.07.06"]
[EventType "swiss"]
[EventCountry "NOR"]
[SourceTitle "playchess.com"]
[Source "ChessBase"]
[SourceQuality "1"]
[TimeControl "40/5400+30:1800+30"]

1. e4 {[%emt 0:01:40]} e5 {[%emt 0:00:00]} 2. Nf3 {[%emt 0:00:08]} Nc6 {[%emt 0:00:00]} 3. Bc4 {[%emt 0:00:05]} Bc5 {[%emt 0:00:00]} 4. O-O {[%emt 0:00:17]} Nf6 {[%emt 0:00:03]} 5. d3 {[%emt 0:00:43]} O-O {[%emt 0:04:36]} 6. Re1 {[%emt 0:02:08]} d6 {[%emt 0:01:21]} 7. c3 {[%emt 0:00:11]} a6 {[%emt 0:00:58]} 8. Nbd2 {[%emt 0:00:46]} Ng4 {[%emt 0:12:17]} 9. Re2 {[%emt 0:00:09]} Kh8 {[%emt 0:02:11]} 10. h3 {[%emt 0:00:34]} Nh6 {[%emt 0:01:10]} 11. Nb3 {[%emt 0:06:11]} Ba7 {[%emt 0:02:11]} 12. Bg5 {[%emt 0:08:59]} Ne7 {[%emt 0:01:59]} 13. d4 {[%emt 0:05:17]} f6 {[%emt 0:13:10]} 14. Bxh6 {[%emt 0:00:19]} gxh6 {[%emt 0:00:07]} 15. Nbd2 {[%emt 0:00:46]} b5 {[%emt 0:06:46]} 16. Bb3 {[%emt 0:00:24]} c5 {[%emt 0:01:07]} 17. Nf1 {[%emt 0:01:44]} c4 {[%emt 0:03:37]} 18. Bc2 {[%emt 0:00:05]} Ng6 {[%emt 0:01:32]} 19. Ng3 {[%emt 0:02:49]} Nf4 {[%emt 0:09:34]} 20. Rd2 {[%emt 0:00:10]} Rg8 {[%emt 0:07:23]} 21. Kh2 {[%emt 0:01:54]} Qe8 {[%emt 0:16:58]} 22. Nh4 {[%emt 0:00:56]} Qf7 {[%emt 0:03:29]} 23. Ne2 {[%emt 0:01:03]} Qh5 {[%emt 0:10:06]} 24. Nxf4 {[%emt 0:02:51]} Qxh4 {[%emt 0:00:08]} 25. g3 {[%emt 0:00:33]} Qg5 {[%emt 0:00:11]} 26. Ng2 {[%emt 0:00:42]} Be6 {[%emt 0:01:07]} 27. Ne3 {[%emt 0:02:18]} Rae8 {[%emt 0:00:44]} 28. Qf3 {[%emt 0:00:37]} h5 {[%emt 0:00:36]} 29. Rg1 {[%emt 0:10:13]} h4 {[%emt 0:00:21]} 30. g4 {[%emt 0:00:40]} h5 {[%emt 0:00:21]} 31. Rdd1 {[%emt 0:00:34]} Qf4+ {[%emt 0:00:51]} 32. Qxf4 {[%emt 0:00:29]} exf4 {[%emt 0:00:04]} 33. Nf5 {[%emt 0:11:04]} hxg4 {[%emt 0:00:29]} 34. hxg4 {[%emt 0:00:07]} Bb8 {[%emt 0:00:52]} 35. Kh3 {[%emt 0:14:16]} Bxf5 {[%emt 0:00:36]} 36. gxf5 {[%emt 0:00:02]} d5 {[%emt 0:00:30]} 37. Rxg8+ {[%emt 0:00:06]} Kxg8 {[%emt 0:00:17]} 38. f3 {[%emt 0:01:49]} Kf7 {[%emt 0:00:30]} 39. Rg1 {[%emt 0:00:23]} dxe4 {[%emt 0:00:42]} 40. Bxe4 {[%emt 0:00:25]} Rd8 {[%emt 0:00:33]} 41. Rg4 {[%emt 0:30:44]} a5 {[%emt 0:30:28]} 42. Rxh4 {[%emt 0:02:34]} Kg7 {[%emt 0:00:25]} 43. Kg2 {[%emt 0:01:22]} b4 {[%emt 0:00:35]} 44. Rh1 {[%emt 0:01:03]} Bc7 {[%emt 0:00:00]} 45. Re1 {[%emt 0:00:00]} Re8 {[%emt 0:00:00]} 46. Kf2 {[%emt 0:00:00]} Rd8 {[%emt 0:00:00]} 47. Bc6 {[%emt 0:00:00]} Kf8 {[%emt 0:00:00]} 48. Bb5 {[%emt 0:00:00]} Bd6 {[%emt 0:00:33]} 49. Re6 {[%emt 0:00:00]} Kg7 {[%emt 0:02:12]} 50. Re8 {[%emt 0:00:00]} Rxe8 {[%emt 0:00:45]} 51. Bxe8 {[%emt 0:00:00]} Kf8 {[%emt 0:00:29]} 52. Bb5 {[%emt 0:00:00]} Ke7 {[%emt 0:00:23]} 53. Ke2 {[%emt 0:00:00]} Bc7 {[%emt 0:00:35]} 54. Bxc4 {[%emt 0:00:00]} Kd6 {[%emt 0:00:12]} 55. Kd3 {[%emt 0:00:00]} bxc3 {[%emt 0:00:28]} 56. bxc3 {[%emt 0:00:00]} Kc6 {[%emt 0:00:43]} 57. Be6 {[%emt 0:00:00]} Bd6 {[%emt 0:00:30]} 58. c4 {[%emt 0:00:00]} Bb8 {[%emt 0:00:38]} 1-0

[Event "NOR-ch Various 2019"]
[Site "Larvik"]
[Date "2019.07.08"]
[Round "3.18"]
[White "Bruaset, Eivind"]
[Black "Opseth, Oliver"]
[Result "1-0"]
[ECO "B09"]
[WhiteElo "2074"]
[BlackElo "1714"]
[Annotator "NA RC"]
[PlyCount "75"]
[EventDate "2019.07.06"]
[EventType "swiss"]
[EventCountry "NOR"]
[SourceTitle "playchess.com"]
[Source "ChessBase"]
[SourceQuality "1"]
[TimeControl "40/5400+30:1800+30"]

1. e4 {[%emt 0:00:00]} d6 {[%emt 0:00:00]} 2. d4 {[%emt 0:00:00]} Nf6 {[%emt 0:00:00]} 3. Nc3 {[%emt 0:00:00]} g6 {[%emt 0:00:45]} 4. f4 {[%emt 0:00:04]} e5 {[%emt 0:03:55]} 5. dxe5 {[%emt 0:04:07]} dxe5 {[%emt 0:00:25]} 6. Qxd8+ {[%emt 0:00:59]} Kxd8 {[%emt 0:00:03]} 7. fxe5 {[%emt 0:00:48]} Nfd7 {[%emt 0:05:18]} 8. Bg5+ {[%emt 0:17:37]} Be7 {[%emt 0:00:00]} 9. Bxe7+ {[%emt 0:00:35]} Kxe7 {[%emt 0:00:08]} 10. O-O-O {[%emt 0:00:10]} c6 {[%emt 0:04:17]} 11. Nf3 {[%emt 0:01:03]} Nc5 {[%emt 0:08:05]} 12. Bc4 {[%emt 0:06:09]} Be6 {[%emt 0:03:53]} 13. Bxe6 {[%emt 0:00:46]} Nxe6 {[%emt 0:01:09]} 14. Kd2 {[%emt 0:06:23]} Nd7 {[%emt 0:03:01]} 15. Ke3 {[%emt 0:00:15]} a5 {[%emt 0:06:35]} 16. b3 {[%emt 0:02:06]} Rad8 {[%emt 0:02:56]} 17. a4 {[%emt 0:00:25]} h5 {[%emt 0:03:42]} 18. Nb1 {[%emt 0:01:13]} Nb6 {[%emt 0:06:44]} 19. Na3 {[%emt 0:06:19]} Rxd1 {[%emt 0:01:43]} 20. Rxd1 {[%emt 0:00:02]} Rd8 {[%emt 0:00:46]} 21. Rf1 {[%emt 0:08:18]} Kf8 {[%emt 0:07:54]} 22. Nd2 {[%emt 0:00:56]} Nd4 {[%emt 0:07:30]} 23. Rf2 {[%emt 0:00:35]} Nc8 {[%emt 0:04:39]} 24. Ndc4 {[%emt 0:00:14]} b6 {[%emt 0:00:50]} 25. Nd6 {[%emt 0:01:09]} Nxd6 {[%emt 0:00:50]} 26. exd6 {[%emt 0:00:02]} Rxd6 {[%emt 0:00:32]} 27. Nc4 {[%emt 0:00:07]} Rd8 {[%emt 0:00:27]} 28. Rd2 {[%emt 0:01:59]} Ne6 {[%emt 0:00:21]} 29. Rxd8+ {[%emt 0:00:07]} Nxd8 {[%emt 0:00:07]} 30. Nxb6 {[%emt 0:00:04]} Ke7 {[%emt 0:01:30]} 31. Nc4 {[%emt 0:02:07]} Nb7 {[%emt 0:00:09]} 32. Ne5 {[%emt 0:01:06]} Nd8 {[%emt 0:00:47]} 33. c3 {[%emt 0:00:55]} Ke6 {[%emt 0:00:16]} 34. Nc4 {[%emt 0:00:04]} Nb7 {[%emt 0:00:11]} 35. b4 {[%emt 0:00:14]} axb4 {[%emt 0:00:16]} 36. cxb4 {[%emt 0:00:01]} f5 {[%emt 0:00:35]} 37. a5 {[%emt 0:00:35]} fxe4 {[%emt 0:01:19]} 38. a6 {[%emt 0:00:07]} 1-0

[Event "NOR-ch Various 2019"]
[Site "Larvik"]
[Date "2019.07.08"]
[Round "3.19"]
[White "Kjaras, Alf Marius"]
[Black "Sebastian, Andreas"]
[Result "1-0"]
[ECO "B07"]
[WhiteElo "1860"]
[BlackElo "1911"]
[Annotator "NA"]
[PlyCount "73"]
[EventDate "2019.07.06"]
[EventType "swiss"]
[EventCountry "NOR"]
[SourceTitle "playchess.com"]
[Source "ChessBase"]
[SourceQuality "1"]
[TimeControl "40/5400+30:1800+30"]

1. d4 {[%emt 0:00:00]} d6 {[%emt 0:00:35]} 2. e4 {[%emt 0:00:03]} Nf6 {[%emt 0:00:06]} 3. Nc3 {[%emt 0:03:23]} e5 {[%emt 0:00:10]} 4. dxe5 {[%emt 0:02:49]} dxe5 {[%emt 0:03:03]} 5. Qxd8+ {[%emt 0:03:13]} Kxd8 {[%emt 0:00:09]} 6. a3 {[%emt 0:05:15]} Be6 {[%emt 0:05:15]} 7. Nf3 {[%emt 0:04:51]} Nbd7 {[%emt 0:03:09]} 8. Ng5 {[%emt 0:04:03]} Bc5 {[%emt 0:02:17]} 9. Nxe6+ {[%emt 0:03:23]} fxe6 {[%emt 0:00:13]} 10. f3 {[%emt 0:07:03]} Ke7 {[%emt 0:03:52]} 11. Bd2 {[%emt 0:05:19]} a6 {[%emt 0:03:04]} 12. Bc4 {[%emt 0:02:04]} b5 {[%emt 0:04:52]} 13. Ba2 {[%emt 0:02:22]} Rhb8 {[%emt 0:03:51]} 14. Ne2 {[%emt 0:12:33]} a5 {[%emt 0:03:34]} 15. b4 {[%emt 0:06:23]} axb4 {[%emt 0:00:27]} 16. axb4 {[%emt 0:03:10]} Bb6 {[%emt 0:04:46]} 17. Kd1 {[%emt 0:09:24]} Ra7 {[%emt 0:03:31]} 18. Kc1 {[%emt 0:03:05]} Rba8 {[%emt 0:00:10]} 19. Kb2 {[%emt 0:01:49]} h6 {[%emt 0:02:09]} 20. Bb3 {[%emt 0:03:15]} Ne8 {[%emt 0:07:30]} 21. Rxa7 {[%emt 0:01:56]} Rxa7 {[%emt 0:01:53]} 22. Ra1 {[%emt 0:01:21]} Nd6 {[%emt 0:00:21]} 23. Bc3 {[%emt 0:03:01]} Be3 {[%emt 0:05:21]} 24. Rxa7 {[%emt 0:00:31]} Bxa7 {[%emt 0:00:07]} 25. Nc1 {[%emt 0:02:06]} Nb6 {[%emt 0:00:29]} 26. Nd3 {[%emt 0:00:37]} Nbc4+ {[%emt 0:00:10]} 27. Bxc4 {[%emt 0:03:49]} Nxc4+ {[%emt 0:00:10]} 28. Kb3 {[%emt 0:00:09]} Kd6 {[%emt 0:02:51]} 29. Nc5 {[%emt 0:03:22]} Bxc5 {[%emt 0:02:50]} 30. bxc5+ {[%emt 0:00:05]} Kc6 {[%emt 0:01:37]} 31. Kb4 {[%emt 0:00:57]} g6 {[%emt 0:00:59]} 32. h4 {[%emt 0:01:58]} Ne3 {[%emt 0:06:07]} 33. Bxe5 {[%emt 0:00:53]} Nxg2 {[%emt 0:03:53]} 34. Bg3 {[%emt 0:01:02]} Ne3 {[%emt 0:01:05]} 35. Kc3 {[%emt 0:00:56]} Kxc5 {[%emt 0:01:21]} 36. Bf2 {[%emt 0:00:24]} Kd6 {[%emt 0:00:44]} 37. Bxe3 {[%emt 0:00:09]} 1-0

[Event "NOR-ch Various 2019"]
[Site "Larvik"]
[Date "2019.07.08"]
[Round "3.20"]
[White "Nielsen, Andre"]
[Black "Kizatbay, Abyl"]
[Result "0-1"]
[ECO "B67"]
[WhiteElo "2229"]
[BlackElo "2216"]
[Annotator "NA"]
[PlyCount "68"]
[EventDate "2019.07.06"]
[EventType "swiss"]
[EventCountry "NOR"]
[SourceTitle "playchess.com"]
[Source "ChessBase"]
[SourceQuality "1"]
[TimeControl "40/5400+30:1800+30"]

1. e4 {[%emt 0:00:00]} c5 {[%emt 0:00:00]} 2. Nf3 {[%emt 0:00:00]} d6 {[%emt 0:00:00]} 3. d4 {[%emt 0:00:00]} cxd4 {[%emt 0:00:00]} 4. Nxd4 {[%emt 0:00:02]} Nf6 {[%emt 0:00:00]} 5. Nc3 {[%emt 0:00:09]} Nc6 {[%emt 0:00:00]} 6. Bg5 {[%emt 0:00:34]} e6 {[%emt 0:00:00]} 7. Qd2 {[%emt 0:00:46]} a6 {[%emt 0:00:03]} 8. O-O-O {[%emt 0:00:52]} Bd7 {[%emt 0:00:08]} 9. f4 {[%emt 0:04:28]} h6 {[%emt 0:00:24]} 10. Bh4 {[%emt 0:01:59]} g5 {[%emt 0:00:09]} 11. fxg5 {[%emt 0:02:08]} Ng4 {[%emt 0:00:05]} 12. Kb1 {[%emt 0:15:55]} Nge5 {[%emt 0:01:33]} 13. Nxc6 {[%emt 0:03:10]} Bxc6 {[%emt 0:02:00]} 14. Be2 {[%emt 0:10:04]} Be7 {[%emt 0:08:42]} 15. Bg3 {[%emt 0:02:10]} hxg5 {[%emt 0:02:06]} 16. Rhf1 {[%emt 0:14:05]} b5 {[%emt 0:03:53]} 17. Bxe5 {[%emt 0:02:47]} dxe5 {[%emt 0:01:15]} 18. Qe3 {[%emt 0:00:28]} Qc7 {[%emt 0:04:50]} 19. Bg4 {[%emt 0:05:02]} Rh7 {[%emt 0:15:52]} 20. Rd2 {[%emt 0:09:34]} Qa7 {[%emt 0:07:21]} 21. Qf3 {[%emt 0:01:29]} Rd8 {[%emt 0:07:52]} 22. Rxd8+ {[%emt 0:03:16]} Kxd8 {[%emt 0:02:07]} 23. Bh5 {[%emt 0:10:53]} b4 {[%emt 0:03:19]} 24. Ne2 {[%emt 0:02:05]} f5 {[%emt 0:02:38]} 25. Ng3 {[%emt 0:02:58]} f4 {[%emt 0:05:53]} 26. Ne2 {[%emt 0:00:48]} Qb7 {[%emt 0:00:28]} 27. Rd1+ {[%emt 0:04:48]} Kc7 {[%emt 0:01:12]} 28. Bg4 {[%emt 0:02:22]} Bxe4 {[%emt 0:01:03]} 29. Qb3 {[%emt 0:00:26]} Bd5 {[%emt 0:00:45]} 30. Qd3 {[%emt 0:00:38]} Rxh2 {[%emt 0:00:46]} 31. Bf3 {[%emt 0:00:56]} e4 {[%emt 0:04:02]} 32. Bxe4 {[%emt 0:00:14]} Bxe4 {[%emt 0:00:04]} 33. Qd7+ {[%emt 0:00:18]} Kb6 {[%emt 0:00:12]} 34. Qxe6+ {[%emt 0:01:01]} Qc6 {[%emt 0:00:09]} 0-1

[Event "NOR-ch Various 2019"]
[Site "Larvik"]
[Date "2019.07.08"]
[Round "3.21"]
[White "Sjoberg, Isak"]
[Black "Melaa, Sondre"]
[Result "1-0"]
[ECO "C59"]
[WhiteElo "2182"]
[BlackElo "2118"]
[Annotator "NA"]
[PlyCount "81"]
[EventDate "2019.07.06"]
[EventType "swiss"]
[EventCountry "NOR"]
[SourceTitle "playchess.com"]
[Source "ChessBase"]
[SourceQuality "1"]
[TimeControl "40/5400+30:1800+30"]

1. e4 {[%emt 0:00:00]} e5 {[%emt 0:00:00]} 2. Nf3 {[%emt 0:00:02]} Nc6 {[%emt 0:00:00]} 3. Bc4 {[%emt 0:00:57]} Nf6 {[%emt 0:00:31]} 4. Ng5 {[%emt 0:00:10]} d5 {[%emt 0:00:03]} 5. exd5 {[%emt 0:00:15]} Na5 {[%emt 0:00:12]} 6. Bb5+ {[%emt 0:00:54]} c6 {[%emt 0:00:53]} 7. dxc6 {[%emt 0:00:09]} bxc6 {[%emt 0:00:20]} 8. Be2 {[%emt 0:00:10]} h6 {[%emt 0:00:25]} 9. Nh3 {[%emt 0:00:06]} Bd6 {[%emt 0:00:07]} 10. d3 {[%emt 0:00:18]} O-O {[%emt 0:01:00]} 11. Nc3 {[%emt 0:01:04]} Nd5 {[%emt 0:00:22]} 12. Bd2 {[%emt 0:00:14]} Rb8 {[%emt 0:02:37]} 13. Rb1 {[%emt 0:00:06]} Nb7 {[%emt 0:01:30]} 14. Ng1 {[%emt 0:00:18]} Nc5 {[%emt 0:05:10]} 15. Bf3 {[%emt 0:09:44]} Bc7 {[%emt 0:04:10]} 16. Nge2 {[%emt 0:03:52]} f5 {[%emt 0:06:14]} 17. O-O {[%emt 0:14:42]} Ba6 {[%emt 0:07:41]} 18. Re1 {[%emt 0:24:08]} e4 {[%emt 0:10:08]} 19. dxe4 {[%emt 0:00:07]} fxe4 {[%emt 0:00:13]} 20. Bg4 {[%emt 0:00:07]} Qf6 {[%emt 0:05:04]} 21. Nxd5 {[%emt 0:06:17]} Qxf2+ {[%emt 0:02:52]} 22. Kh1 {[%emt 0:00:04]} cxd5 {[%emt 0:00:25]} 23. Bc3 {[%emt 0:09:35]} Qh4 {[%emt 0:22:07]} 24. Qxd5+ {[%emt 0:01:40]} Kh8 {[%emt 0:00:42]} 25. Qh5 {[%emt 0:00:47]} Qxh5 {[%emt 0:01:48]} 26. Bxh5 {[%emt 0:00:11]} Rf5 {[%emt 0:04:47]} 27. Bg4 {[%emt 0:02:17]} Rg5 {[%emt 0:00:39]} 28. Bh3 {[%emt 0:00:24]} Na4 {[%emt 0:01:20]} 29. Bd4 {[%emt 0:02:36]} Rd5 {[%emt 0:03:06]} 30. c4 {[%emt 0:08:03]} Bxc4 {[%emt 0:08:06]} 31. Be6 {[%emt 0:00:08]} Bxe2 {[%emt 0:01:04]} 32. Bxd5 {[%emt 0:00:15]} Bd3 {[%emt 0:00:09]} 33. Bxe4 {[%emt 0:01:48]} Bxb1 {[%emt 0:00:50]} 34. Bxb1 {[%emt 0:00:05]} Ba5 {[%emt 0:06:23]} 35. Re7 {[%emt 0:04:13]} Rc8 {[%emt 0:01:20]} 36. Bxg7+ {[%emt 0:02:06]} Kg8 {[%emt 0:00:08]} 37. Bxh6 {[%emt 0:00:59]} Bb4 {[%emt 0:02:05]} 38. Rg7+ {[%emt 0:02:07]} Kh8 {[%emt 0:00:08]} 39. Rg4 {[%emt 0:00:18]} Bf8 {[%emt 0:00:31]} 40. Be3 {[%emt 0:00:33]} Nxb2 {[%emt 0:01:22]} 41. Bd4+ {[%emt 0:30:12]} 1-0

[Event "NOR-ch Various 2019"]
[Site "Larvik"]
[Date "2019.07.08"]
[Round "3.22"]
[White "Tunsjo, Axel"]
[Black "Johannessen, Heine N"]
[Result "1-0"]
[ECO "B50"]
[WhiteElo "2039"]
[BlackElo "1743"]
[Annotator "NA"]
[PlyCount "75"]
[EventDate "2019.07.06"]
[EventType "swiss"]
[EventCountry "NOR"]
[SourceTitle "playchess.com"]
[Source "ChessBase"]
[SourceQuality "1"]
[TimeControl "40/5400+30:1800+30"]

1. e4 {[%emt 0:00:00]} c5 {[%emt 0:00:00]} 2. b3 {[%emt 0:00:00]} d6 {[%emt 0:14:07]} 3. Bb2 {[%emt 0:00:07]} Nc6 {[%emt 0:00:43]} 4. Nf3 {[%emt 0:00:20]} Nf6 {[%emt 0:05:39]} 5. Nc3 {[%emt 0:00:12]} Bg4 {[%emt 0:03:44]} 6. Be2 {[%emt 0:01:18]} e6 {[%emt 0:02:20]} 7. h3 {[%emt 0:00:56]} Bxf3 {[%emt 0:00:32]} 8. Bxf3 {[%emt 0:00:04]} Nd4 {[%emt 0:00:45]} 9. e5 {[%emt 0:00:42]} dxe5 {[%emt 0:03:30]} 10. Bxb7 {[%emt 0:00:17]} Rb8 {[%emt 0:00:19]} 11. Bf3 {[%emt 0:01:33]} Bd6 {[%emt 0:06:24]} 12. O-O {[%emt 0:01:26]} O-O {[%emt 0:01:34]} 13. d3 {[%emt 0:01:49]} Qe7 {[%emt 0:06:19]} 14. a4 {[%emt 0:06:16]} Rfd8 {[%emt 0:02:54]} 15. Re1 {[%emt 0:01:14]} Rbc8 {[%emt 0:01:09]} 16. Nb5 {[%emt 0:12:41]} a6 {[%emt 0:04:35]} 17. Na3 {[%emt 0:00:16]} Bb8 {[%emt 0:03:52]} 18. Nc4 {[%emt 0:02:00]} Qc7 {[%emt 0:04:19]} 19. g3 {[%emt 0:00:33]} Nd7 {[%emt 0:00:57]} 20. Bc3 {[%emt 0:01:22]} Nc6 {[%emt 0:05:43]} 21. Bxc6 {[%emt 0:08:48]} Qxc6 {[%emt 0:00:14]} 22. Nxe5 {[%emt 0:00:49]} Nxe5 {[%emt 0:00:33]} 23. Bxe5 {[%emt 0:00:08]} Bxe5 {[%emt 0:01:01]} 24. Rxe5 {[%emt 0:00:03]} f6 {[%emt 0:00:50]} 25. Re3 {[%emt 0:01:51]} a5 {[%emt 0:01:24]} 26. Qe1 {[%emt 0:00:14]} Qb6 {[%emt 0:02:42]} 27. Rxe6 {[%emt 0:00:30]} Qb4 {[%emt 0:00:30]} 28. Re4 {[%emt 0:00:32]} Qb6 {[%emt 0:01:06]} 29. Qe3 {[%emt 0:00:38]} h6 {[%emt 0:01:41]} 30. Re1 {[%emt 0:00:39]} Qd6 {[%emt 0:00:38]} 31. Qd2 {[%emt 0:00:31]} Qb6 {[%emt 0:00:19]} 32. R1e2 {[%emt 0:00:27]} Rf8 {[%emt 0:01:19]} 33. Qe1 {[%emt 0:01:18]} f5 {[%emt 0:01:06]} 34. Re7 {[%emt 0:05:07]} f4 {[%emt 0:02:27]} 35. R2e6 {[%emt 0:00:28]} Rc6 {[%emt 0:03:32]} 36. Qe5 {[%emt 0:01:29]} Rf6 {[%emt 0:01:28]} 37. Re8+ {[%emt 0:01:18]} Kh7 {[%emt 0:01:00]} 38. Qe4+ {[%emt 0:00:06]} 1-0

[Event "NOR-ch Various 2019"]
[Site "Larvik"]
[Date "2019.07.08"]
[Round "3.23"]
[White "Solaas, Timian Martinius Man"]
[Black "Ihlen, Sivert"]
[Result "0-1"]
[ECO "E81"]
[WhiteElo "1779"]
[BlackElo "1580"]
[Annotator "NA"]
[PlyCount "106"]
[EventDate "2019.07.06"]
[EventType "swiss"]
[EventCountry "NOR"]
[SourceTitle "playchess.com"]
[Source "ChessBase"]
[SourceQuality "1"]
[TimeControl "40/5400+30:1800+30"]

1. d4 {[%emt 0:00:00]} Nf6 {[%emt 0:00:00]} 2. c4 {[%emt 0:00:00]} g6 {[%emt 0:00:00]} 3. Nc3 {[%emt 0:00:00]} Bg7 {[%emt 0:00:00]} 4. e4 {[%emt 0:00:00]} d6 {[%emt 0:00:00]} 5. f3 {[%emt 0:00:10]} O-O {[%emt 0:00:11]} 6. Be3 {[%emt 0:00:17]} c5 {[%emt 0:00:17]} 7. Nge2 {[%emt 0:00:15]} Nc6 {[%emt 0:11:44]} 8. Qd2 {[%emt 0:03:26]} Qa5 {[%emt 0:12:21]} 9. g4 {[%emt 0:17:05]} a6 {[%emt 0:20:44]} 10. dxc5 {[%emt 0:21:15]} dxc5 {[%emt 0:01:16]} 11. Nd5 {[%emt 0:00:52]} Qxd2+ {[%emt 0:16:01]} 12. Kxd2 {[%emt 0:02:36]} Rd8 {[%emt 0:03:09]} 13. Kc2 {[%emt 0:04:18]} Nxd5 {[%emt 0:01:54]} 14. cxd5 {[%emt 0:00:55]} Nb4+ {[%emt 0:03:31]} 15. Kb3 {[%emt 0:04:02]} b6 {[%emt 0:04:50]} 16. Nc3 {[%emt 0:12:35]} a5 {[%emt 0:01:55]} 17. a3 {[%emt 0:02:23]} a4+ {[%emt 0:03:53]} 18. Nxa4 {[%emt 0:01:59]} Rxa4 {[%emt 0:00:38]} 19. Bb5 {[%emt 0:09:55]} Ra5 {[%emt 0:01:11]} 20. axb4 {[%emt 0:00:08]} Rxb5 {[%emt 0:00:23]} 21. Bd2 {[%emt 0:00:15]} cxb4 {[%emt 0:02:17]} 22. Be3 {[%emt 0:01:36]} e6 {[%emt 0:01:22]} 23. Ra8 {[%emt 0:02:27]} Ra5 {[%emt 0:02:11]} 24. Rb8 {[%emt 0:00:19]} Be5 {[%emt 0:01:18]} 25. Bxb6 {[%emt 0:01:13]} Bxb8 {[%emt 0:00:33]} 26. Rc1 {[%emt 0:01:41]} Bf4 {[%emt 0:02:43]} 27. Bxa5 {[%emt 0:02:15]} Bxc1 {[%emt 0:01:06]} 28. Bxd8 {[%emt 0:00:10]} exd5 {[%emt 0:00:10]} 29. exd5 {[%emt 0:00:15]} Kf8 {[%emt 0:00:19]} 30. Kxb4 {[%emt 0:01:22]} Bxb2 {[%emt 0:00:57]} 31. Kb3 {[%emt 0:01:36]} Be5 {[%emt 0:00:19]} 32. h4 {[%emt 0:00:23]} Ke8 {[%emt 0:00:07]} 33. Bg5 {[%emt 0:00:30]} Kd7 {[%emt 0:00:33]} 34. Kc2 {[%emt 0:00:33]} Bb7 {[%emt 0:00:12]} 35. Kd3 {[%emt 0:00:16]} Bxd5 {[%emt 0:00:17]} 36. f4 {[%emt 0:00:18]} Bc7 {[%emt 0:00:28]} 37. f5 {[%emt 0:00:11]} Bf3 {[%emt 0:00:33]} 38. fxg6 {[%emt 0:00:20]} hxg6 {[%emt 0:00:36]} 39. h5 {[%emt 0:00:17]} gxh5 {[%emt 0:00:05]} 40. gxh5 {[%emt 0:00:06]} Bxh5 {[%emt 0:00:07]} 41. Ke3 {[%emt 0:30:21]} Ke6 {[%emt 0:30:09]} 42. Kf2 {[%emt 0:00:17]} Kf5 {[%emt 0:00:08]} 43. Be3 {[%emt 0:00:22]} Ke4 {[%emt 0:00:35]} 44. Ba7 {[%emt 0:00:12]} f5 {[%emt 0:00:31]} 45. Bc5 {[%emt 0:00:37]} f4 {[%emt 0:00:10]} 46. Ba7 {[%emt 0:00:19]} Be5 {[%emt 0:00:27]} 47. Kf1 {[%emt 0:00:13]} Kf3 {[%emt 0:00:15]} 48. Bb6 {[%emt 0:00:17]} Be8 {[%emt 0:00:12]} 49. Bc5 {[%emt 0:00:15]} Bb5+ {[%emt 0:00:09]} 50. Ke1 {[%emt 0:00:56]} Kg2 {[%emt 0:00:13]} 51. Bb6 {[%emt 0:00:12]} f3 {[%emt 0:00:07]} 52. Bc5 {[%emt 0:00:09]} Bg3+ {[%emt 0:00:19]} 53. Kd2 {[%emt 0:00:08]} Bf2 {[%emt 0:00:06] Kd3} 0-1

[Event "NOR-ch Various 2019"]
[Site "Larvik"]
[Date "2019.07.08"]
[Round "3.24"]
[White "Olsen, William Alexander"]
[Black "Salte, Hakon"]
[Result "1-0"]
[ECO "A49"]
[WhiteElo "1764"]
[BlackElo "1221"]
[Annotator "NA"]
[PlyCount "53"]
[EventDate "2019.07.06"]
[EventType "swiss"]
[EventCountry "NOR"]
[SourceTitle "playchess.com"]
[Source "ChessBase"]
[SourceQuality "1"]
[TimeControl "40/5400+30:1800+30"]

1. Nf3 {[%emt 0:00:00]} g6 {[%emt 0:01:30]} 2. g3 {[%emt 0:00:00]} d6 {[%emt 0:00:11]} 3. d4 {[%emt 0:00:00]} Bg7 {[%emt 0:00:38]} 4. Bg2 {[%emt 0:00:03]} Nf6 {[%emt 0:02:17]} 5. O-O {[%emt 0:00:12]} O-O {[%emt 0:04:59]} 6. Re1 {[%emt 0:02:33]} Bf5 {[%emt 0:04:57]} 7. Ng5 {[%emt 0:02:04]} d5 {[%emt 0:00:35]} 8. c4 {[%emt 0:00:50]} Nc6 {[%emt 0:04:43]} 9. cxd5 {[%emt 0:00:38]} Nb4 {[%emt 0:01:46]} 10. e4 {[%emt 0:00:07]} Bd7 {[%emt 0:03:04]} 11. a3 {[%emt 0:01:34]} Na6 {[%emt 0:02:13]} 12. e5 {[%emt 0:00:08]} Ne8 {[%emt 0:01:38]} 13. Qb3 {[%emt 0:03:36]} Rb8 {[%emt 0:02:47]} 14. e6 {[%emt 0:07:57]} fxe6 {[%emt 0:01:27]} 15. dxe6 {[%emt 0:00:15]} Bc6 {[%emt 0:02:15]} 16. d5 {[%emt 0:00:22]} Nd6 {[%emt 0:09:07]} 17. dxc6 {[%emt 0:00:43]} bxc6 {[%emt 0:00:22]} 18. Qc2 {[%emt 0:00:07]} c5 {[%emt 0:01:40]} 19. Nc3 {[%emt 0:00:23]} h6 {[%emt 0:05:25]} 20. Nf7 {[%emt 0:01:41]} Nxf7 {[%emt 0:01:23]} 21. exf7+ {[%emt 0:00:10]} Rxf7 {[%emt 0:00:11]} 22. Bd5 {[%emt 0:00:18]} Qf8 {[%emt 0:03:19]} 23. Qxg6 {[%emt 0:00:17]} Re8 {[%emt 0:00:50]} 24. Bxf7+ {[%emt 0:00:10]} Qxf7 {[%emt 0:00:08]} 25. Qxa6 {[%emt 0:00:12]} Bd4 {[%emt 0:00:21]} 26. Be3 {[%emt 0:00:16]} Rf8 {[%emt 0:00:19]} 27. Qe2 {[%emt 0:00:23]} 1-0